bitfinex/quotes_ETHUSD_20240817
["timestamp","ask_amount","ask_price","bid_price","bid_amount"]
[1723867811474,0.95682316,2598.5,2598.4,3.0]
[1723867811670,0.95682316,2598.5,2598.4,6.84852]
[1723867814499,2.97783574,2598.5,2598.4,6.84852]
[1723867814907,22.56663021,2598.5,2598.4,6.84852]
[1723867815682,3.04663021,2598.5,2598.4,6.84852]
[1723867815879,0.06879447,2598.5,2598.4,6.84852]
[1723867817793,0.98217133,2598.5,2598.4,6.84852]
[1723867818397,2.97074872,2598.5,2598.4,6.84852]
[1723867818808,2.16595436,2598.5,2598.4,6.84852]
[1723867819384,0.98217133,2598.5,2598.4,6.84852]
[1723867820410,2.9714259,2598.5,2598.4,6.84852]
[1723867820838,22.4914259,2598.5,2598.4,6.84852]
[1723867821180,0.98217133,2598.5,2598.4,23.15765]
[1723867821385,0.06879447,2598.5,2598.4,23.15765]
[1723867821992,0.80479436,2598.7,2598.6,3.84822]
[1723867822322,2.87168259,2598.7,2598.6,6.84822]
[1723867822498,2.06688823,2598.7,2598.6,6.84822]
[1723867823319,3.27499098,2598.7,2598.6,6.84822]
[1723867824631,2.06688823,2598.7,2598.6,6.84822]
[1723867826105,3.27499098,2598.7,2598.6,6.84822]
[1723867826304,2.06688823,2598.7,2598.6,6.84822]
[1723867826906,2.87231971,2598.7,2598.6,6.84822]
[1723867827441,2.06741397,2598.7,2598.6,21.95434]
[1723867827623,0.0688269,2598.7,2598.6,26.35256]
[1723867827792,1.20810275,2599.2,2599.0,7.69526]
[1723867827793,0.80489683,2599.1,2599.0,7.69526]
[1723867827988,0.05969085,2599.1,2599.0,20.62316]
[1723867828241,0.80489683,2599.2,2599.1,7.69496]
[1723867828430,1.81346717,2599.2,2599.1,12.02496]
[1723867828604,0.80640463,2599.2,2599.1,12.02496]
[1723867828805,1.8684669,2599.2,2599.1,12.02496]
[1723867829407,0.80640463,2599.2,2599.1,12.02496]
[1723867830546,0.05540516,2599.2,2599.1,12.02496]
[1723867830901,0.80489683,2599.4,2599.3,3.84718]
[1723867831208,21.07532546,2599.4,2599.3,6.84718]
[1723867831413,22.13698258,2599.4,2599.3,6.84718]
[1723867831741,20.27042863,2599.4,2599.3,6.84718]
[1723867831942,22.13683378,2599.4,2599.3,6.84718]
[1723867832432,20.27042863,2599.4,2599.3,6.84718]
[1723867833350,22.13662319,2599.4,2599.3,6.84718]
[1723867833741,20.27042863,2599.4,2599.3,6.84718]
[1723867834041,22.1364406,2599.4,2599.3,6.84718]
[1723867835969,22.13567878,2599.4,2599.3,6.84718]
[1723867838246,20.26988685,2599.4,2599.3,6.84718]
[1723867838442,19.52,2599.4,2599.3,6.84718]
[1723867841266,20.26983492,2599.4,2599.3,6.84718]
[1723867842491,19.52,2599.4,2599.3,6.84718]
[1723867843054,21.3305413,2599.4,2599.3,3.0]
[1723867843276,33.29002781,2599.4,2599.3,3.0]
[1723867844849,33.38544419,2599.4,2599.3,3.0]
[1723867845994,24.26334419,2599.4,2599.3,3.0]
[1723867846197,22.23085451,2599.4,2599.3,3.0]
[1723867846491,22.2307764,2599.4,2599.3,3.0]
[1723867847402,22.2307764,2599.4,2598.8,9.931]
[1723867847403,9.1221,2599.3,2598.6,9.931]
[1723867847698,9.21764252,2599.2,2598.5,3.84831]
[1723867847900,9.1221,2599.0,2598.5,3.84831]
[1723867848291,0.09541652,2598.9,2598.5,3.84831]
[1723867848604,0.09541652,2598.9,2598.5,3.84829]
[1723867848805,0.09541652,2598.9,2598.6,3.8482]
[1723867849211,1.40192417,2598.9,2598.7,3.0]
[1723867849718,1.40192417,2598.9,2598.4,1.33]
[1723867850076,1.40192417,2598.9,2598.5,3.84834]
[1723867850274,9.9633,2598.8,2598.3,3.84856]
[1723867850487,11.01570242,2598.8,2598.2,5.1788]
[1723867850700,9.9633,2598.6,2598.2,5.1788]
[1723867851017,0.09525274,2598.5,2598.2,5.1788]
[1723867851221,0.09525274,2598.5,2598.2,1.33]
[1723867851427,0.09525274,2598.5,2598.2,5.17881]
[1723867852270,0.09525274,2598.5,2598.3,3.84865]
[1723867852499,0.09525274,2598.5,2598.4,3.0]
[1723867856473,19.61525274,2598.5,2598.4,3.0]
[1723867859721,20.36534032,2598.5,2598.4,3.0]
[1723867859903,21.42649929,2598.5,2598.4,3.0]
[1723867860087,22.23139612,2598.5,2598.4,3.0]
[1723867860811,22.23131385,2598.5,2598.4,3.0]
[1723867861510,25.57158551,2598.5,2598.4,3.0]
[1723867861713,25.57158551,2598.5,2598.2,3.0]
[1723867861915,0.75003652,2598.4,2598.2,3.0]
[1723867862289,0.09508256,2598.3,2598.2,3.0]
[1723867862615,19.61508256,2598.3,2598.2,3.0]
[1723867863611,19.61508256,2598.3,2598.2,6.84881]
[1723867864514,19.61508256,2598.3,2598.2,3.0]
[1723867864736,19.61508256,2598.3,2598.0,6.84908]
[1723867864737,31.53989082,2598.3,2598.0,6.84908]
[1723867865023,31.53989082,2598.3,2598.1,3.84895]
[1723867865486,31.53989082,2598.3,2598.0,3.84903]
[1723867865817,31.53989082,2598.3,2598.0,7.69805]
[1723867865977,29.57838256,2598.3,2598.1,3.84895]
[1723867866313,29.57838256,2598.3,2598.1,6.84895]
[1723867867529,19.61508256,2598.3,2598.2,3.84881]
[1723867867735,19.61508256,2598.3,2598.2,10.69762]
[1723867868318,0.09508256,2598.3,2598.2,10.69762]
[1723867868836,19.52,2598.6,2598.3,3.84866]
[1723867874496,19.52,2598.5,2598.3,3.84866]
[1723867874932,0.09509905,2598.4,2598.3,3.84866]
[1723867880329,19.61509905,2598.4,2598.3,3.84866]
[1723867882510,19.61509905,2598.4,2598.2,6.84881]
[1723867882910,19.61509905,2598.4,2598.2,10.69755]
[1723867883111,19.61509905,2598.4,2598.2,6.84874]
[1723867885919,20.41999588,2598.4,2598.2,6.84874]
[1723867886112,19.52,2598.3,2598.2,6.84874]
[1723867886635,20.3655083,2598.3,2598.2,6.84874]
[1723867886845,19.61496025,2598.3,2598.2,6.84874]
[1723867887325,20.32115779,2598.3,2598.2,6.84874]
[1723867887523,22.15522464,2598.3,2598.2,6.84874]
[1723867887902,31.70933056,2598.3,2598.2,3.0]
[1723867888235,33.64238203,2598.3,2598.2,3.0]
[1723867888435,34.0456633,2598.3,2598.2,3.0]
[1723867888737,34.0456633,2598.3,2598.1,3.0]
[1723867888946,2.94347031,2598.2,2598.1,3.0]
[1723867889099,2.54051722,2598.2,2598.1,3.0]
[1723867889304,2.63539928,2598.2,2598.1,3.0]
[1723867889506,2.63572734,2598.2,2598.1,3.0]
[1723867890447,3.03835237,2598.2,2598.1,3.0]
[1723867890848,3.19035599,2598.2,2598.1,3.0]
[1723867891567,4.80131572,2598.2,2598.1,3.0]
[1723867891879,3.06594816,2598.2,2598.1,3.0]
[1723867892172,4.80519453,2598.2,2598.1,3.0]
[1723867892369,4.80519453,2598.2,2598.0,3.0]
[1723867892548,3.09935274,2598.1,2598.0,3.0]
[1723867892751,2.94905506,2598.1,2598.0,3.0]
[1723867893048,3.19525783,2598.1,2598.0,3.0]
[1723867893477,3.19517946,2598.1,2598.0,3.0]
[1723867894679,3.19510402,2598.1,2598.0,6.84911]
[1723867894982,3.04376571,2598.1,2598.0,6.84911]
[1723867895541,3.19506254,2598.1,2598.0,6.84911]
[1723867895983,3.04368537,2598.1,2598.0,6.84911]
[1723867896341,3.04320047,2598.1,2598.0,6.84911]
[1723867896541,3.44456229,2598.1,2598.0,6.84911]
[1723867896775,4.80540113,2598.1,2598.0,6.84911]
[1723867898082,24.32540113,2598.1,2598.0,6.84911]
[1723867899285,3.1944414,2598.1,2597.7,5.17953]
[1723867899617,3.1944414,2598.1,2597.6,3.84962]
[1723867899618,1.20923397,2597.8,2597.6,3.84962]
[1723867899915,22.56255641,2597.7,2597.6,3.84962]
[1723867900100,22.56255641,2597.7,2597.5,3.84982]
[1723867900412,0.70781529,2597.6,2597.5,5.17982]
[1723867900617,2.54464799,2597.6,2597.5,8.17982]
[1723867900779,2.63896664,2597.6,2597.5,17.78442]
[1723867901116,0.80213176,2597.6,2597.5,17.78442]
[1723867902482,0.09455963,2597.6,2597.5,21.63427]
[1723867902729,0.09455963,2597.6,2597.5,26.03412]
[1723867903014,0.09455963,2597.6,2597.5,26.66110635]
[1723867904286,20.32623958,2598.1,2598.0,3.84911]
[1723867904488,22.15812806,2598.1,2598.0,6.84911]
[1723867905115,22.15793203,2598.1,2598.0,10.69822]
[1723867905318,22.15795663,2598.1,2598.0,10.69822]
[1723867907033,20.32176719,2598.1,2598.0,10.69822]
[1723867907190,21.35190917,2598.1,2598.0,10.69822]
[1723867907395,22.15795272,2598.1,2598.0,10.69822]
[1723867910043,2.63822131,2598.1,2598.0,10.69822]
[1723867913617,1.83217776,2598.1,2598.0,10.69822]
[1723867914206,2.63800619,2598.1,2598.0,10.69822]
[1723867914535,2.63802695,2598.1,2598.0,10.69822]
[1723867914705,1.83195884,2598.1,2598.0,10.69822]
[1723867915342,3.04112656,2598.1,2598.0,10.69822]
[1723867915512,2.63806104,2598.1,2598.0,10.69822]
[1723867915837,1.83195884,2598.1,2598.0,10.69822]
[1723867916040,21.35195884,2598.1,2598.0,10.69822]
[1723867916243,22.15803463,2598.1,2598.0,10.69822]
[1723867916411,21.35195884,2598.1,2598.0,10.69822]
[1723867916613,22.56112656,2598.1,2598.0,10.69822]
[1723867916943,21.35195884,2598.1,2598.0,10.69822]
[1723867917240,22.56112656,2598.1,2598.0,10.69822]
[1723867917611,22.158064,2598.1,2598.0,10.69822]
[1723867917814,21.35195884,2598.1,2598.0,10.69822]
[1723867918006,22.15796235,2598.1,2598.0,10.69822]
[1723867919035,22.15791921,2598.1,2598.0,10.69822]
[1723867919229,21.3519157,2598.1,2598.0,10.69822]
[1723867920043,22.56108342,2598.1,2598.0,10.69822]
[1723867920246,22.15818853,2598.1,2598.0,10.69822]
[1723867920458,22.15818853,2598.1,2598.0,20.68882]
[1723867921051,21.3519157,2598.1,2598.0,20.68882]
[1723867921355,22.15819133,2598.1,2598.0,20.68882]
[1723867922347,22.15866024,2598.1,2598.0,20.68882]
[1723867923115,2.63866024,2598.1,2598.0,14.54733]
[1723867923321,0.09474641,2598.1,2598.0,25.08793]
[1723867923520,0.80627563,2598.4,2598.0,25.08793]
[1723867923521,0.80627563,2598.4,2598.3,7.69734]
[1723867923727,1.20916772,2598.6,2598.5,3.84837]
[1723867923963,4.71036907,2598.6,2598.5,3.84837]
[1723867924164,4.71036907,2598.6,2598.5,6.84837]
[1723867926853,4.70995293,2598.6,2598.5,6.84837]
[1723867927823,24.22995293,2598.6,2598.5,6.84837]
[1723867931002,24.22995293,2598.6,2598.5,3.0]
[1723867931190,24.22995293,2598.6,2598.5,6.84837]
[1723867933710,22.61764097,2598.6,2598.5,6.84837]
[1723867933910,3.09764097,2598.6,2598.5,6.84837]
[1723867934282,2.94606481,2598.6,2598.5,6.84837]
[1723867934914,3.03969782,2598.6,2598.5,6.84837]
[1723867935784,3.03923361,2598.6,2598.5,6.84837]
[1723867940388,3.03961278,2598.6,2598.5,6.84837]
[1723867942493,1.83078686,2598.6,2598.5,6.84837]
[1723867942740,3.03961278,2598.6,2598.5,6.84837]
[1723867944888,1.30245893,2598.6,2598.5,6.84837]
[1723867945135,3.0404434,2598.6,2598.5,6.84837]
[1723867945720,2.63810992,2598.6,2598.5,6.84837]
[1723867945925,3.0404434,2598.6,2598.5,6.84837]
[1723867947134,1.83161748,2598.6,2598.5,6.84837]
[1723867947339,2.63826608,2598.6,2598.5,6.84837]
[1723867947918,3.0404434,2598.6,2598.5,6.84837]
[1723867949560,3.04151825,2598.6,2598.5,6.84837]
[1723867951360,3.19409765,2598.6,2598.5,6.84837]
[1723867951513,4.80640961,2598.6,2598.5,6.84837]
[1723867954245,3.04290158,2598.6,2598.5,6.84837]
[1723867954660,4.80636182,2598.6,2598.5,6.84837]
[1723867955749,3.04308586,2598.6,2598.5,6.84837]
[1723867956021,3.16450609,2598.6,2598.5,6.84837]
[1723867956416,1.83258364,2598.6,2598.5,6.84837]
[1723867956618,3.043066,2598.6,2598.5,6.84837]
[1723867956820,3.16459731,2598.6,2598.5,6.84837]
[1723867957465,3.04345868,2598.6,2598.5,6.84837]
[1723867957671,3.16500821,2598.6,2598.5,6.84837]
[1723867958377,4.77732017,2598.6,2598.5,6.84837]
[1723867958758,4.70061911,2598.6,2598.5,6.84837]
[1723867961425,3.08830715,2598.6,2598.5,6.84837]
[1723867963332,5.107756,2598.6,2598.5,6.84837]
[1723867967932,1.42605758,2598.6,2598.5,6.84837]
[1723867968132,5.11021075,2598.6,2598.5,6.84837]
[1723867968576,3.08986175,2598.6,2598.5,6.84837]
[1723867969185,5.11072247,2598.6,2598.5,6.84837]
[1723867969713,3.08986175,2598.6,2598.5,3.0]
[1723867970196,5.11079398,2598.6,2598.5,3.0]
[1723867970360,5.11079398,2598.6,2598.5,6.84837]
[1723867971634,5.11079398,2598.6,2598.5,24.868113]
[1723867971635,3.08986175,2598.6,2598.5,24.868113]
[1723867971758,2.56635236,2598.6,2598.5,25.418113]
[1723867971957,2.56635236,2598.6,2598.5,26.09089953]
[1723867972167,2.47271935,2598.6,2598.5,26.09089953]
[1723867972360,2.47271935,2598.6,2598.5,27.097074]
[1723867972361,0.75268451,2598.6,2598.5,27.097074]
[1723867972605,0.75268451,2598.6,2598.5,26.09085972]
[1723867972606,0.08768505,2598.6,2598.5,26.09085972]
[1723867973101,1.61747084,2599.0,2598.8,9.2533]
[1723867973267,1.61747084,2599.0,2598.9,4.33]
[1723867973484,4.36762274,2599.0,2598.9,8.17778]
[1723867974419,2.88320458,2599.0,2598.9,8.17778]
[1723867974625,3.10155575,2599.0,2598.9,8.17778]
[1723867974773,4.36728949,2599.0,2598.9,8.17778]
[1723867975416,1.48408491,2599.0,2598.9,12.02556]
[1723867976205,2.29211087,2599.0,2598.9,12.02556]
[1723867976613,2.69616587,2599.0,2598.9,12.02556]
[1723867976908,1.21208096,2599.0,2598.9,12.02556]
[1723867977099,2.69558016,2599.0,2598.9,12.02556]
[1723867977697,2.29121908,2599.0,2598.9,12.02556]
[1723867978188,1.4834992,2599.0,2598.9,12.02556]
[1723867978506,2.69558016,2599.0,2598.9,6.84778]
[1723867978706,1.4834992,2599.0,2598.9,6.84778]
[1723867978906,3.10097004,2599.0,2598.9,6.84778]
[1723867979087,4.36558725,2599.0,2598.9,6.84778]
[1723867979413,2.69501639,2599.0,2598.9,6.84778]
[1723867979783,1.57134805,2599.0,2598.9,6.84778]
[1723867980121,2.83598725,2599.0,2598.9,6.84778]
[1723867980684,2.83598725,2599.0,2598.9,10.69556]
[1723867980993,2.78242425,2599.0,2598.9,10.69556]
[1723867982610,1.57096065,2599.0,2598.9,19.94886]
[1723867982917,2.37841431,2599.0,2598.9,21.27886]
[1723867983617,2.37841431,2599.0,2598.9,12.02556]
[1723867983828,2.78242425,2599.0,2598.9,12.02556]
[1723867984120,2.37833858,2599.0,2598.9,12.02556]
[1723867984306,2.37827422,2599.0,2598.9,12.02556]
[1723867984513,2.37828763,2599.0,2598.9,12.02556]
[1723867984739,1.5061194,2599.0,2598.9,12.02556]
[1723867985146,2.31344011,2599.0,2598.9,12.02556]
[1723867985346,12.040883,2599.0,2598.9,10.69556]
[1723867985504,4.36324497,2599.0,2598.9,10.69556]
[1723867986139,2.74577413,2599.0,2598.9,10.69556]
[1723867986500,3.12359024,2599.0,2598.9,10.69556]
[1723867986704,4.36323855,2599.0,2598.9,10.69556]
[1723867987145,4.36323855,2599.0,2598.9,6.84778]
[1723867987845,2.74576771,2599.0,2598.9,6.84778]
[1723867988485,4.36323855,2599.0,2598.9,6.84778]
[1723867989745,2.71711994,2599.0,2598.9,6.84778]
[1723867990243,2.74578531,2599.0,2598.9,6.84778]
[1723867990450,2.7171154,2599.0,2598.9,6.84778]
[1723867990645,1.5061194,2599.0,2598.9,3.0]
[1723867990845,2.7170848,2599.0,2598.9,3.0]
[1723867992325,2.7170848,2599.0,2598.9,10.69556]
[1723867992540,1.5061194,2599.0,2598.9,11.898116]
[1723867992741,2.7170848,2599.0,2598.9,13.228116]
[1723867992942,2.7170848,2599.0,2598.9,22.481416]
[1723867993429,1.5061194,2599.0,2598.9,22.481416]
[1723867993838,2.31323715,2599.0,2598.9,22.481416]
[1723867994377,0.08784885,2599.0,2598.9,23.031416]
[1723867994658,21.13747084,2599.4,2599.2,3.84733]
[1723867994659,20.7309654,2599.4,2599.2,3.84733]
[1723867994957,2.62869797,2599.3,2599.2,3.84733]
[1723867995166,2.62869797,2599.3,2599.2,6.84733]
[1723867995821,1.41773257,2599.3,2599.2,6.84733]
[1723867996155,2.62869797,2599.3,2599.2,6.84733]
[1723867996357,1.41773257,2599.3,2599.2,6.84733]
[1723867997458,2.22462193,2599.3,2599.2,6.84733]
[1723867997825,1.41773257,2599.3,2599.2,6.84733]
[1723867998437,20.7309654,2599.4,2599.3,3.84718]
[1723867998657,22.14820668,2599.4,2599.3,3.84718]
[1723867999277,2.62820668,2599.4,2599.3,3.84718]
[1723868000572,2.62820668,2599.4,2599.3,10.69436]
[1723868000783,2.22391534,2599.4,2599.3,12.02436]
[1723868000948,1.41724128,2599.4,2599.3,12.02436]
[1723868001150,0.52395624,2599.4,2599.3,12.02436]
[1723868001358,0.80667406,2599.5,2599.4,7.69408]
[1723868001359,1.33045247,2599.5,2599.4,7.69408]
[1723868001548,1.41681049,2599.5,2599.4,7.69408]
[1723868002482,2.22335475,2599.5,2599.4,7.69408]
[1723868002980,2.22323694,2599.5,2599.4,7.69408]
[1723868007785,2.22323694,2599.5,2599.4,10.69408]
[1723868007994,13.10348375,2599.5,2599.4,3.0]
[1723868008149,13.10348375,2599.5,2599.2,7.6945]
[1723868008150,12.69561159,2599.5,2599.3,3.0]
[1723868008499,2.62629136,2599.4,2599.3,3.0]
[1723868009756,2.7044299,2599.4,2599.3,3.0]
[1723868011262,2.73348684,2599.4,2599.3,3.0]
[1723868011963,4.35141929,2599.4,2599.3,3.0]
[1723868014467,4.34813507,2599.4,2599.3,3.0]
[1723868014670,4.34816032,2599.4,2599.3,3.0]
[1723868014865,7.90924146,2599.4,2599.3,3.0]
[1723868015210,17.5122361,2599.4,2599.3,3.0]
[1723868015501,17.91478062,2599.4,2599.3,3.0]
[1723868016307,17.91478062,2599.4,2599.3,6.84718]
[1723868016670,17.84012569,2599.4,2599.3,6.84718]
[1723868017398,14.27904455,2599.4,2599.3,6.84718]
[1723868018280,4.27262982,2599.4,2599.3,6.84718]
[1723868019778,2.62912008,2599.4,2599.3,6.84718]
[1723868020371,4.24431159,2599.4,2599.3,6.84718]
[1723868021004,2.90366744,2599.4,2599.3,6.84718]
[1723868021177,4.2445327,2599.4,2599.3,6.84718]
[1723868025845,4.24451624,2599.4,2599.3,6.84718]
[1723868030255,4.24476872,2599.4,2599.3,6.84718]
[1723868031511,4.24476872,2599.4,2599.3,10.69436]
[1723868034713,4.24527102,2599.4,2599.3,10.69436]
[1723868034864,2.90366744,2599.4,2599.3,10.69436]
[1723868035050,3.03493213,2599.4,2599.3,10.69436]
[1723868035268,4.24526952,2599.4,2599.3,10.69436]
[1723868036050,2.63007801,2599.4,2599.3,10.69436]
[1723868036453,4.24637071,2599.4,2599.3,10.69436]
[1723868037156,2.63186218,2599.4,2599.3,10.69436]
[1723868037697,1.41974062,2599.4,2599.3,10.69436]
[1723868037899,2.60130984,2599.4,2599.3,10.69436]
[1723868038268,4.21760254,2599.4,2599.3,10.69436]
[1723868038599,2.60130984,2599.4,2599.3,10.69436]
[1723868038805,4.21760254,2599.4,2599.3,10.69436]
[1723868039601,4.5449877,2599.4,2599.3,10.69436]
[1723868040482,2.52400039,2599.4,2599.3,10.69436]
[1723868040691,4.14080347,2599.4,2599.3,10.69436]
[1723868040906,2.52400039,2599.4,2599.3,10.69436]
[1723868041257,4.14080347,2599.4,2599.3,10.69436]
[1723868041410,2.52400039,2599.4,2599.3,10.69436]
[1723868041752,4.14080347,2599.4,2599.3,10.69436]
[1723868042542,2.87651084,2599.4,2599.3,10.69436]
[1723868042722,2.95910407,2599.4,2599.3,10.69436]
[1723868043127,4.14067329,2599.4,2599.3,10.69436]
[1723868043328,2.5547625,2599.4,2599.3,10.69436]
[1723868043849,2.52401089,2599.4,2599.3,10.69436]
[1723868044009,2.55472322,2599.4,2599.3,10.69436]
[1723868044419,2.55469985,2599.4,2599.3,10.69436]
[1723868045030,2.52399728,2599.4,2599.3,10.69436]
[1723868045434,2.55467078,2599.4,2599.3,10.69436]
[1723868046224,2.55467078,2599.4,2599.3,20.24006]
[1723868046429,2.55467078,2599.4,2599.3,24.08724]
[1723868046641,2.15046415,2599.4,2599.3,24.08724]
[1723868051737,0.51380703,2599.4,2599.3,24.08724]
[1723868052338,0.07813854,2599.4,2599.3,24.63724]
[1723868052580,0.51375831,2599.4,2599.3,24.63724]
[1723868052778,0.07813854,2599.4,2599.3,24.63724]
[1723868053988,0.07813854,2599.4,2599.3,28.48442]
[1723868054151,0.07813854,2599.4,2599.3,29.38357636]
[1723868054351,0.80816316,2599.8,2599.7,7.69318]
[1723868054712,2.07078093,2599.8,2599.7,12.02318]
[1723868054855,2.14929893,2599.8,2599.7,12.02318]
[1723868055056,0.51389243,2599.8,2599.7,15.86977]
[1723868055274,0.51389243,2599.8,2599.7,16.41977]
[1723868055452,0.078518,2599.8,2599.7,16.41977]
[1723868055851,0.078518,2599.8,2599.7,26.29797]
[1723868058177,0.0758609,2599.8,2599.7,22.45138]
[1723868058378,0.80816316,2600.0,2599.9,7.6926]
[1723868058627,1.71081125,2600.0,2599.9,10.6926]
[1723868059725,0.90264809,2600.0,2599.9,10.6926]
[1723868059948,1.70935217,2600.0,2599.9,10.6926]
[1723868060727,0.8826468,2600.0,2599.9,10.6926]
[1723868061028,1.70920322,2600.0,2599.9,10.6926]
[1723868061593,1.70920322,2600.0,2599.9,11.94986]
[1723868064138,1.70907846,2600.0,2599.9,11.94986]
[1723868064331,1.70907846,2600.0,2599.9,10.6926]
[1723868065134,0.26237823,2600.0,2599.9,10.6926]
[1723868065634,1.70892935,2600.0,2599.9,10.6926]
[1723868066200,0.90222527,2600.0,2599.9,10.6926]
[1723868066409,0.26233483,2600.0,2599.9,10.6926]
[1723868066603,0.9021783,2600.0,2599.9,10.6926]
[1723868066806,0.9021867,2600.0,2599.9,12.0226]
[1723868067452,1.70889078,2600.0,2599.9,12.0226]
[1723868068326,0.9021867,2600.0,2599.9,12.0226]
[1723868069303,1.70889078,2600.0,2599.9,12.0226]
[1723868069505,1.70854167,2600.0,2599.9,12.0226]
[1723868070133,1.70856701,2600.0,2599.9,12.0226]
[1723868071440,1.70856701,2600.0,2599.9,10.6926]
[1723868071648,11.21458183,2600.0,2599.9,10.6926]
[1723868071807,11.21458183,2600.0,2599.9,3.0]
[1723868071808,13.08624672,2600.0,2599.9,3.0]
[1723868072505,13.08624672,2600.0,2599.8,3.0]
[1723868072707,3.54624504,2599.9,2599.8,3.0]
[1723868073119,3.62102751,2599.9,2599.8,3.0]
[1723868074448,3.42493727,2599.9,2599.8,3.0]
[1723868074642,3.62162347,2599.9,2599.8,3.0]
[1723868074855,3.4253336,2599.9,2599.8,3.0]
[1723868075347,2.41165949,2599.9,2599.8,3.0]
[1723868075509,3.42540806,2599.9,2599.8,3.0]
[1723868075945,5.04221114,2599.9,2599.8,3.0]
[1723868077706,3.42540806,2599.9,2599.8,3.0]
[1723868078350,9.1,2599.8,2599.1,9.8168]
[1723868078555,0.80695214,2599.4,2599.3,3.84709]
[1723868078926,1.70818217,2599.4,2599.3,3.84709]
[1723868080029,1.70818217,2599.4,2599.3,6.84709]
[1723868083570,1.63098311,2599.4,2599.3,6.84709]
[1723868084366,0.82403097,2599.4,2599.3,6.84709]
[1723868084661,2.03445918,2599.4,2599.3,6.84709]
[1723868085555,0.82403097,2599.4,2599.3,6.84709]
[1723868087049,1.63108021,2599.4,2599.3,6.84709]
[1723868087386,0.82403097,2599.4,2599.3,6.84709]
[1723868087590,1.63106712,2599.4,2599.3,6.84709]
[1723868088246,0.82390246,2599.4,2599.3,6.84709]
[1723868088441,1.63093402,2599.4,2599.3,6.84709]
[1723868088644,0.82390246,2599.4,2599.3,6.84709]
[1723868089268,1.63092763,2599.4,2599.3,6.84709]
[1723868090104,2.03433067,2599.4,2599.3,6.84709]
[1723868090246,0.82390246,2599.4,2599.3,6.84709]
[1723868090456,1.63088651,2599.4,2599.3,6.84709]
[1723868091094,1.63087279,2599.4,2599.3,6.84709]
[1723868091257,2.03433067,2599.4,2599.3,6.84709]
[1723868091589,1.63084847,2599.4,2599.3,6.84709]
[1723868092889,1.63058256,2599.4,2599.3,6.84709]
[1723868093591,0.07456384,2599.4,2599.3,6.84709]
[1723868094278,0.21660254,2599.4,2599.3,6.84709]
[1723868094591,1.63042779,2599.4,2599.3,6.84709]
[1723868094752,1.63047329,2599.4,2599.3,6.84709]
[1723868094948,0.21662474,2599.4,2599.3,6.84709]
[1723868095390,0.82351693,2599.4,2599.3,6.84709]
[1723868095596,0.82350203,2599.4,2599.3,6.84709]
[1723868096164,0.21662474,2599.4,2599.3,6.84709]
[1723868097475,1.63040788,2599.4,2599.3,6.84709]
[1723868097905,0.2165982,2599.4,2599.3,6.84709]
[1723868099482,1.02354421,2599.4,2599.3,6.84709]
[1723868099786,1.63035729,2599.4,2599.3,10.69427]
[1723868100197,0.82341128,2599.4,2599.3,10.69427]
[1723868100528,1.63035729,2599.4,2599.3,10.69427]
[1723868101027,0.21660429,2599.4,2599.3,10.69427]
[1723868101225,1.0235503,2599.4,2599.3,6.84709]
[1723868101382,1.63037619,2599.4,2599.3,6.84709]
[1723868102402,0.82343018,2599.4,2599.3,10.69427]
[1723868102787,1.02339188,2599.4,2599.3,10.69427]
[1723868103117,1.63021777,2599.4,2599.3,10.69427]
[1723868103316,0.82343018,2599.4,2599.3,10.69427]
[1723868103502,1.63022204,2599.4,2599.3,10.69427]
[1723868105301,1.57276419,2599.4,2599.3,10.69427]
[1723868109235,1.57276419,2599.4,2599.3,12.02427]
[1723868109793,1.57294757,2599.4,2599.3,12.02427]
[1723868111632,1.57294757,2599.4,2599.3,13.226697]
[1723868111837,0.07456384,2599.4,2599.3,23.018097]
[1723868113520,0.18375182,2599.4,2599.3,23.018097]
[1723868114110,0.07456384,2599.4,2599.3,23.018097]
[1723868114311,0.1837539,2599.4,2599.3,23.018097]
[1723868114933,0.07456384,2599.4,2599.3,23.018097]
[1723868115336,0.18375955,2599.4,2599.3,23.018097]
[1723868115538,0.07456384,2599.4,2599.3,27.415277]
[1723868116049,0.80768331,2599.6,2599.5,17.48518]
[1723868116238,19.52,2599.7,2599.6,11.54022]
[1723868116434,19.52,2599.7,2599.6,12.09022]
[1723868116742,19.52,2599.7,2599.6,16.292647]
[1723868117937,0.80768331,2599.9,2599.8,3.84644]
[1723868118134,0.69169223,2599.9,2599.8,12.02288]
[1723868118349,1.49939083,2599.9,2599.8,12.4658479]
[1723868118519,1.39028642,2599.9,2599.8,12.4658479]
[1723868118731,0.91678546,2599.9,2599.8,12.4658479]
[1723868118930,0.10910215,2599.9,2599.8,12.4658479]
[1723868119550,0.80768331,2600.0,2599.9,7.6926]
[1723868119760,1.49907278,2600.0,2599.9,11.895027]
[1723868120646,0.10904638,2600.0,2599.9,11.895027]
[1723868121664,0.80768331,2600.2,2600.1,7.692]
[1723868121825,1.49870473,2600.2,2600.1,10.692]
[1723868122026,1.49870473,2600.2,2600.1,20.4834]
[1723868122225,1.49870473,2600.2,2600.1,21.685827]
[1723868122538,0.10896407,2600.2,2600.1,21.685827]
[1723868123784,0.80768331,2600.3,2600.2,7.6917]
[1723868123936,1.4982962,2600.3,2600.2,10.6917]
[1723868124878,1.4982962,2600.3,2600.2,12.0217]
[1723868125082,0.10889134,2600.3,2600.2,12.0217]
[1723868125231,3.34597195,2600.4,2600.3,7.69142]
[1723868125434,4.0363525,2600.4,2600.3,7.69142]
[1723868125775,2.64713078,2600.4,2600.3,7.69142]
[1723868126630,4.03608492,2600.4,2600.3,7.69142]
[1723868126863,2.64713078,2600.4,2600.3,7.69142]
[1723868127549,0.10884214,2600.4,2600.3,7.69142]
[1723868127751,0.80768331,2600.5,2600.3,3.84559]
[1723868127958,0.80768331,2600.5,2600.3,7.69118]
[1723868128559,0.80768331,2600.5,2600.4,3.84556]
[1723868128756,1.3887734,2600.5,2600.4,3.84556]
[1723868129880,1.46382978,2600.5,2600.4,3.84556]
[1723868130057,1.57267192,2600.5,2600.4,3.84556]
[1723868130655,0.18389852,2600.5,2600.4,9.02112]
[1723868130881,0.18389852,2600.5,2600.4,9.4640879]